[Event "Early-Titled-Tuesday-Blitz-September-12-2023"]
[Site "Chess.com"]
[Date "2023.09.12"]
[Round "11"]
[White "HajiyevKanan"]
[Black "Aleksandar-Topalov"]
[Result "1-0"]
[WhiteElo "2513"]
[BlackElo "2342"]
[TimeControl "180+1"]
[EndTime "10:05:57 PDT"]
[Termination "HajiyevKanan won by resignation"]

1. d4 {[%clk 0:02:45.2]} 1... e6 {[%clk 0:02:59.7]} 2. Nf3 {[%clk 0:02:44]} 2...
f5 {[%clk 0:02:59.7]} 3. c4 {[%clk 0:02:44.5]} 3... Nf6 {[%clk 0:02:59.5]} 4. h3
{[%clk 0:02:45.3]} 4... Bb4+ {[%clk 0:02:54.5]} 5. Bd2 {[%clk 0:02:44.8]} 5...
a5 {[%clk 0:02:40.2]} 6. Nc3 {[%clk 0:02:43.8]} 6... O-O {[%clk 0:02:37.9]} 7.
e3 {[%clk 0:02:43.4]} 7... d6 {[%clk 0:02:34.1]} 8. Be2 {[%clk 0:02:39.1]} 8...
Nc6 {[%clk 0:02:33.6]} 9. d5 {[%clk 0:02:28.4]} 9... Ne5 {[%clk 0:02:25.8]} 10.
dxe6 {[%clk 0:02:18.7]} 10... Bxe6 {[%clk 0:02:21]} 11. Nd4 {[%clk 0:02:18.6]}
11... Bd7 {[%clk 0:02:18.6]} 12. O-O {[%clk 0:02:14.8]} 12... Bxc3 {[%clk
0:02:13.6]} 13. Bxc3 {[%clk 0:02:14.2]} 13... Ne4 {[%clk 0:02:13.1]} 14. Qc2
{[%clk 0:02:09.6]} 14... Nxc3 {[%clk 0:02:04]} 15. Qxc3 {[%clk 0:02:09.6]} 15...
f4 {[%clk 0:02:04.2]} 16. e4 {[%clk 0:01:57]} 16... Bc6 {[%clk 0:01:51]} 17. f3
{[%clk 0:01:54.2]} 17... Bd7 {[%clk 0:01:43.6]} 18. c5 {[%clk 0:01:50.4]} 18...
dxc5 {[%clk 0:01:22.1]} 19. Nf5 {[%clk 0:01:42.6]} 19... Bxf5 {[%clk 0:01:17.2]}
20. Qxe5 {[%clk 0:01:40.6]} 20... Bg6 {[%clk 0:00:46.7]} 21. Rfd1 {[%clk
0:01:35.9]} 21... Qh4 {[%clk 0:00:40.6]} 22. Bc4+ {[%clk 0:01:26.1]} 22... Kh8
{[%clk 0:00:40]} 23. Rd7 {[%clk 0:01:23.7]} 23... Rf6 {[%clk 0:00:33.8]} 24.
Qxc7 {[%clk 0:01:17.9]} 24... Bh5 {[%clk 0:00:30.1]} 25. Rxg7 {[%clk 0:00:45.7]}
25... Bxf3 {[%clk 0:00:24.1]} 26. gxf3 {[%clk 0:00:19.5]} 26... Qxh3 {[%clk
0:00:24.2]} 27. Rd1 {[%clk 0:00:13.7]} 27... Rh6 {[%clk 0:00:23]} 28. Rg2 {[%clk
0:00:10.4]} 28... Qh1+ {[%clk 0:00:21.4]} 29. Kf2 {[%clk 0:00:10.5]} 29... Qh4+
{[%clk 0:00:15.3]} 30. Ke2 {[%clk 0:00:10]} 30... Rg6 {[%clk 0:00:13.1]} 31.
Qe5+ {[%clk 0:00:08.9]} 31... Qf6 {[%clk 0:00:10.4]} 32. Qxf6+ {[%clk
0:00:07.2]} 32... Rxf6 {[%clk 0:00:10.9]} 33. Rdg1 {[%clk 0:00:04.9]} 33... Rb6
{[%clk 0:00:10.1]} 34. Rg8+ {[%clk 0:00:05.3]} 1-0

[Event "Early-Titled-Tuesday-Blitz-September-12-2023"]
[Site "Chess.com"]
[Date "2023.09.12"]
[Round "11"]
[White "LuisFSiles"]
[Black "CristianS27"]
[Result "0-1"]
[WhiteElo "2378"]
[BlackElo "2510"]
[TimeControl "180+1"]
[EndTime "10:06:00 PDT"]
[Termination "CristianS27 won on time"]

1. e4 {[%clk 0:03:00.9]} 1... e5 {[%clk 0:02:57.9]} 2. Nf3 {[%clk 0:03:00.6]}
2... d5 {[%clk 0:02:58.4]} 3. exd5 {[%clk 0:02:58.1]} 3... e4 {[%clk 0:02:59.3]}
4. Qe2 {[%clk 0:02:58.3]} 4... Nf6 {[%clk 0:02:59.6]} 5. Nc3 {[%clk 0:02:53.4]}
5... Be7 {[%clk 0:03:00]} 6. Nxe4 {[%clk 0:02:52.2]} 6... O-O {[%clk 0:03:00.3]}
7. Nxf6+ {[%clk 0:02:36.4]} 7... Bxf6 {[%clk 0:03:01.2]} 8. d4 {[%clk
0:02:36.5]} 8... Qxd5 {[%clk 0:03:00.6]} 9. Be3 {[%clk 0:02:34.4]} 9... Nc6
{[%clk 0:03:00.9]} 10. Qc4 {[%clk 0:02:33.8]} 10... Qa5+ {[%clk 0:02:54.1]} 11.
c3 {[%clk 0:02:20]} 11... Be6 {[%clk 0:02:49.6]} 12. Qb5 {[%clk 0:02:17.3]}
12... Qb6 {[%clk 0:02:41]} 13. Bd3 {[%clk 0:01:58.3]} 13... Rfe8 {[%clk
0:02:36.7]} 14. Qxb6 {[%clk 0:01:57.6]} 14... axb6 {[%clk 0:02:37.6]} 15. O-O
{[%clk 0:01:54.8]} 15... Rxa2 {[%clk 0:02:35.3]} 16. Rxa2 {[%clk 0:01:47.3]}
16... Bxa2 {[%clk 0:02:36.2]} 17. c4 {[%clk 0:01:32.4]} 17... Nb4 {[%clk
0:02:09.5]} 18. Be2 {[%clk 0:01:17.1]} 18... Nc2 {[%clk 0:02:09.8]} 19. Rc1
{[%clk 0:01:12.7]} 19... Nxe3 {[%clk 0:02:07.2]} 20. fxe3 {[%clk 0:01:13.6]}
20... Rxe3 {[%clk 0:02:05.4]} 21. Kf2 {[%clk 0:01:14.2]} 21... Re8 {[%clk
0:01:49.3]} 22. Bd3 {[%clk 0:00:57.4]} 22... c5 {[%clk 0:01:27.8]} 23. d5 {[%clk
0:00:44.9]} 23... Bb3 {[%clk 0:01:28.1]} 24. Nd2 {[%clk 0:00:34.9]} 24... Ba4
{[%clk 0:01:19.9]} 25. b3 {[%clk 0:00:29.8]} 25... Bd4+ {[%clk 0:01:17.7]} 26.
Kf1 {[%clk 0:00:27.6]} 26... Bd7 {[%clk 0:01:12.4]} 27. Nf3 {[%clk 0:00:20.2]}
27... Re3 {[%clk 0:01:05.5]} 28. Bc2 {[%clk 0:00:18.9]} 28... Rc3 {[%clk
0:00:57.1]} 29. Ke2 {[%clk 0:00:12.9]} 29... Bf5 {[%clk 0:00:52.9]} 30. Nxd4
{[%clk 0:00:10.1]} 30... cxd4 {[%clk 0:00:51.9]} 31. Kd2 {[%clk 0:00:10.1]}
31... Bxc2 {[%clk 0:00:43.1]} 32. Rxc2 {[%clk 0:00:09.1]} 32... Rxb3 {[%clk
0:00:44]} 33. c5 {[%clk 0:00:08.1]} 33... bxc5 {[%clk 0:00:31.5]} 34. Rxc5
{[%clk 0:00:09]} 34... Rc3 {[%clk 0:00:31.1]} 35. Rb5 {[%clk 0:00:05.8]} 35...
g6 {[%clk 0:00:22.5]} 36. Rxb7 {[%clk 0:00:04.9]} 36... Kg7 {[%clk 0:00:22.3]}
37. Rb4 {[%clk 0:00:04]} 37... Ra3 {[%clk 0:00:20.5]} 38. Rxd4 {[%clk
0:00:02.6]} 38... Kf8 {[%clk 0:00:14.8]} 0-1

[Event "Early-Titled-Tuesday-Blitz-September-12-2023"]
[Site "Chess.com"]
[Date "2023.09.12"]
[Round "11"]
[White "secretsuperstar7"]
[Black "TERMINATOR_PC"]
[Result "1-0"]
[WhiteElo "2458"]
[BlackElo "2548"]
[TimeControl "180+1"]
[EndTime "10:06:04 PDT"]
[Termination "secretsuperstar7 won on time"]

1. c4 {[%clk 0:03:00.9]} 1... e6 {[%clk 0:01:23.7]} 2. Nc3 {[%clk 0:02:59.1]}
2... d5 {[%clk 0:01:23.3]} 3. e3 {[%clk 0:02:58.8]} 3... Nf6 {[%clk 0:01:23]} 4.
Nf3 {[%clk 0:02:58.2]} 4... b6 {[%clk 0:01:23.2]} 5. b3 {[%clk 0:02:58.4]} 5...
Bb7 {[%clk 0:01:22.7]} 6. Bb2 {[%clk 0:02:59.1]} 6... Nbd7 {[%clk 0:01:23.4]} 7.
Be2 {[%clk 0:02:59.5]} 7... a6 {[%clk 0:01:23.8]} 8. O-O {[%clk 0:02:59.6]} 8...
Bd6 {[%clk 0:01:23.8]} 9. d4 {[%clk 0:02:58.8]} 9... O-O {[%clk 0:01:24.1]} 10.
Bd3 {[%clk 0:02:57.7]} 10... Re8 {[%clk 0:01:21]} 11. Rc1 {[%clk 0:02:56.9]}
11... Qe7 {[%clk 0:01:20.1]} 12. Re1 {[%clk 0:02:51.3]} 12... Ne4 {[%clk
0:01:14.3]} 13. Ne2 {[%clk 0:02:38.5]} 13... Bb4 {[%clk 0:01:12.3]} 14. Rf1
{[%clk 0:02:36.7]} 14... Rac8 {[%clk 0:01:09.3]} 15. Ng3 {[%clk 0:02:24.8]}
15... Nxg3 {[%clk 0:00:59.7]} 16. hxg3 {[%clk 0:02:25.7]} 16... Nf6 {[%clk
0:00:59.9]} 17. Ne5 {[%clk 0:02:23.9]} 17... Ne4 {[%clk 0:00:56.6]} 18. Qh5
{[%clk 0:02:14.3]} 18... Bd6 {[%clk 0:00:52.6]} 19. f3 {[%clk 0:01:59]} 19... g6
{[%clk 0:00:41.6]} 20. Qh3 {[%clk 0:01:52.7]} 20... Bxe5 {[%clk 0:00:32.4]} 21.
fxe4 {[%clk 0:01:37.9]} 21... Bg7 {[%clk 0:00:29.7]} 22. cxd5 {[%clk 0:01:36.9]}
22... exd5 {[%clk 0:00:29.8]} 23. e5 {[%clk 0:01:37.2]} 23... c5 {[%clk
0:00:30.4]} 24. Ba3 {[%clk 0:01:22.9]} 24... f6 {[%clk 0:00:26.7]} 25. Be2
{[%clk 0:01:06.3]} 25... fxe5 {[%clk 0:00:24.5]} 26. Bg4 {[%clk 0:01:06.4]}
26... Rc7 {[%clk 0:00:20.9]} 27. Kh2 {[%clk 0:01:05.8]} 27... Bc8 {[%clk
0:00:17.2]} 28. Rc2 {[%clk 0:00:55.4]} 28... Bxg4 {[%clk 0:00:16.3]} 29. Qxg4
{[%clk 0:00:56.3]} 29... Qe6 {[%clk 0:00:12.8]} 30. Qd1 {[%clk 0:00:49.9]} 30...
exd4 {[%clk 0:00:07.4]} 31. exd4 {[%clk 0:00:50]} 31... c4 {[%clk 0:00:08.1]}
32. bxc4 {[%clk 0:00:49.8]} 32... Rxc4 {[%clk 0:00:08.1]} 33. Rcf2 {[%clk
0:00:49.3]} 33... Rxd4 {[%clk 0:00:06.1]} 34. Qf3 {[%clk 0:00:48.9]} 34... Re4
{[%clk 0:00:02.2]} 35. Qf7+ {[%clk 0:00:38.5]} 35... Qxf7 {[%clk 0:00:01.8]} 36.
Rxf7 {[%clk 0:00:39.4]} 36... d4 {[%clk 0:00:01.7]} 37. Rd7 {[%clk 0:00:39.5]}
37... R4e6 {[%clk 0:00:00.9]} 38. Rff7 {[%clk 0:00:39.2]} 38... Be5 {[%clk
0:00:01.1]} 39. Rxh7 {[%clk 0:00:39.1]} 39... b5 {[%clk 0:00:01.6]} 40. Rh6
{[%clk 0:00:37.3]} 40... a5 {[%clk 0:00:02.3]} 41. Bc1 {[%clk 0:00:35.7]} 41...
b4 {[%clk 0:00:01.9]} 42. Rhh7 {[%clk 0:00:31.5]} 42... a4 {[%clk 0:00:01.2]}
43. Bf4 {[%clk 0:00:31.7]} 1-0

[Event "Early-Titled-Tuesday-Blitz-September-12-2023"]
[Site "Chess.com"]
[Date "2023.09.12"]
[Round "11"]
[White "Beca95"]
[Black "temus_galaktionov"]
[Result "1-0"]
[WhiteElo "2966"]
[BlackElo "2820"]
[TimeControl "180+1"]
[EndTime "10:06:08 PDT"]
[Termination "Beca95 won on time"]

1. e4 {[%clk 0:03:00.9]} 1... c6 {[%clk 0:03:00.4]} 2. Nf3 {[%clk 0:02:57.9]}
2... g6 {[%clk 0:03:01.3]} 3. Nc3 {[%clk 0:02:57.3]} 3... Bg7 {[%clk 0:03:02.2]}
4. d4 {[%clk 0:02:56.6]} 4... d6 {[%clk 0:03:02.7]} 5. h3 {[%clk 0:02:55.7]}
5... Nd7 {[%clk 0:03:01.9]} 6. Bc4 {[%clk 0:02:53]} 6... e5 {[%clk 0:03:01.6]}
7. dxe5 {[%clk 0:02:49.5]} 7... dxe5 {[%clk 0:03:02.5]} 8. Ng5 {[%clk
0:02:46.1]} 8... Nh6 {[%clk 0:02:59.9]} 9. Be3 {[%clk 0:02:46.8]} 9... Qe7
{[%clk 0:02:58.3]} 10. Qe2 {[%clk 0:02:41.6]} 10... f6 {[%clk 0:02:55.8]} 11.
Ne6 {[%clk 0:02:40.9]} 11... Nb6 {[%clk 0:02:52.8]} 12. Bc5 {[%clk 0:02:28.3]}
12... Qf7 {[%clk 0:02:41.9]} 13. Nxg7+ {[%clk 0:02:23.4]} 13... Qxg7 {[%clk
0:02:42]} 14. Bb3 {[%clk 0:02:19.2]} 14... Nf7 {[%clk 0:02:25.2]} 15. Ba3 {[%clk
0:02:16.5]} 15... Ng5 {[%clk 0:02:22]} 16. O-O-O {[%clk 0:02:10.7]} 16... Be6
{[%clk 0:02:22]} 17. h4 {[%clk 0:02:07.7]} 17... Bxb3 {[%clk 0:02:20.5]} 18.
hxg5 {[%clk 0:02:07.5]} 18... Bc4 {[%clk 0:02:20.5]} 19. Qg4 {[%clk 0:02:03.8]}
19... h5 {[%clk 0:02:01.7]} 20. gxh6 {[%clk 0:01:43.9]} 20... Rxh6 {[%clk
0:01:36.8]} 21. b3 {[%clk 0:01:43.6]} 21... Rxh1 {[%clk 0:01:22.6]} 22. Rxh1
{[%clk 0:01:44.5]} 22... Bg8 {[%clk 0:01:21.5]} 23. Ne2 {[%clk 0:01:40.6]} 23...
Rd8 {[%clk 0:01:18]} 24. Ng3 {[%clk 0:01:40.7]} 24... Rd7 {[%clk 0:01:05.7]} 25.
f4 {[%clk 0:01:31.1]} 25... exf4 {[%clk 0:00:54.7]} 26. Qxf4 {[%clk 0:01:17.7]}
26... Be6 {[%clk 0:00:43.7]} 27. Bb2 {[%clk 0:01:11.4]} 27... Rf7 {[%clk
0:00:41.1]} 28. Qd6 {[%clk 0:01:06.3]} 28... Re7 {[%clk 0:00:30]} 29. Kb1 {[%clk
0:01:01.3]} 29... Nd7 {[%clk 0:00:23.1]} 30. Ba3 {[%clk 0:00:55.6]} 30... c5
{[%clk 0:00:19]} 31. Bxc5 {[%clk 0:00:54.4]} 31... Nxc5 {[%clk 0:00:19.8]} 32.
Qxc5 {[%clk 0:00:55]} 32... b6 {[%clk 0:00:19.8]} 33. Qd6 {[%clk 0:00:55.3]}
33... f5 {[%clk 0:00:18.1]} 34. exf5 {[%clk 0:00:54.4]} 34... Bxf5 {[%clk
0:00:18.1]} 35. Nxf5 {[%clk 0:00:36.1]} 35... gxf5 {[%clk 0:00:19]} 36. Rh8+
{[%clk 0:00:36.1]} 36... Kf7 {[%clk 0:00:11.4]} 37. Qd5+ {[%clk 0:00:36.1]}
37... Kf6 {[%clk 0:00:09.8]} 38. Rg8 {[%clk 0:00:28]} 38... Qf7 {[%clk
0:00:03.5]} 39. Qd4+ {[%clk 0:00:28.2]} 39... Re5 {[%clk 0:00:00.8]} 40. Rd8
{[%clk 0:00:27.9]} 1-0

[Event "Early-Titled-Tuesday-Blitz-September-12-2023"]
[Site "Chess.com"]
[Date "2023.09.12"]
[Round "11"]
[White "cthulhuuu"]
[Black "Let_it_be_1"]
[Result "0-1"]
[WhiteElo "2476"]
[BlackElo "2661"]
[TimeControl "180+1"]
[EndTime "10:06:10 PDT"]
[Termination "Let_it_be_1 won by resignation"]

1. e4 {[%clk 0:03:00.1]} 1... e6 {[%clk 0:02:56.8]} 2. d3 {[%clk 0:02:59.7]}
2... d5 {[%clk 0:02:56.5]} 3. Nd2 {[%clk 0:03:00]} 3... Nf6 {[%clk 0:02:54.7]}
4. Ngf3 {[%clk 0:03:00]} 4... Nc6 {[%clk 0:02:54.5]} 5. c3 {[%clk 0:02:59.8]}
5... e5 {[%clk 0:02:53.9]} 6. exd5 {[%clk 0:02:56.8]} 6... Nxd5 {[%clk
0:02:51.8]} 7. Nc4 {[%clk 0:02:56.1]} 7... Bd6 {[%clk 0:02:47.7]} 8. a4 {[%clk
0:02:52.7]} 8... a5 {[%clk 0:02:46.5]} 9. g3 {[%clk 0:02:51.9]} 9... O-O {[%clk
0:02:43.1]} 10. Bg2 {[%clk 0:02:51.9]} 10... Re8 {[%clk 0:02:39.7]} 11. O-O
{[%clk 0:02:51.6]} 11... Bc5 {[%clk 0:02:39.1]} 12. Nfxe5 {[%clk 0:02:43.6]}
12... Nxe5 {[%clk 0:02:34.5]} 13. Nxe5 {[%clk 0:02:40.6]} 13... Bxf2+ {[%clk
0:02:10.5]} 14. Rxf2 {[%clk 0:02:41]} 14... Rxe5 {[%clk 0:02:10.7]} 15. d4
{[%clk 0:02:36.8]} 15... Re8 {[%clk 0:02:06.1]} 16. Bd2 {[%clk 0:02:12.5]} 16...
c6 {[%clk 0:01:54.1]} 17. Qh5 {[%clk 0:01:59.5]} 17... Be6 {[%clk 0:01:47.1]}
18. Raf1 {[%clk 0:01:55.4]} 18... f6 {[%clk 0:01:42.8]} 19. Be4 {[%clk
0:01:46.3]} 19... f5 {[%clk 0:01:19.3]} 20. Bxf5 {[%clk 0:01:43.3]} 20... Nf6
{[%clk 0:01:10.6]} 21. Bxe6+ {[%clk 0:01:35.7]} 21... Rxe6 {[%clk 0:01:10.4]}
22. Qf5 {[%clk 0:01:36]} 22... Qe8 {[%clk 0:01:05.2]} 23. Bf4 {[%clk 0:00:45.9]}
23... Ne4 {[%clk 0:01:04.3]} 24. Re2 {[%clk 0:00:39.8]} 24... g6 {[%clk
0:00:49.4]} 25. Qg4 {[%clk 0:00:23.7]} 25... h5 {[%clk 0:00:47.3]} 26. Qf3
{[%clk 0:00:20.1]} 26... Ng5 {[%clk 0:00:45.3]} 27. Bxg5 {[%clk 0:00:14]} 27...
Rxe2 {[%clk 0:00:45.1]} 28. Bf6 {[%clk 0:00:12.3]} 28... Qe4 {[%clk 0:00:43.4]}
29. Be5 {[%clk 0:00:08.5]} 29... Qxf3 {[%clk 0:00:40.7]} 30. Rxf3 {[%clk
0:00:09.4]} 30... Rf8 {[%clk 0:00:40.7]} 31. Rxf8+ {[%clk 0:00:03.7]} 31... Kxf8
{[%clk 0:00:40.5]} 32. Bd6+ {[%clk 0:00:04.3]} 32... Kf7 {[%clk 0:00:39.1]} 33.
Ba3 {[%clk 0:00:05.2]} 33... Rc2 {[%clk 0:00:36.3]} 34. h3 {[%clk 0:00:05.2]}
34... Ke6 {[%clk 0:00:36.1]} 35. Kf1 {[%clk 0:00:03.7]} 35... Kd5 {[%clk
0:00:35.9]} 36. g4 {[%clk 0:00:04.2]} 36... hxg4 {[%clk 0:00:34.8]} 37. hxg4
{[%clk 0:00:05.1]} 37... Ke4 {[%clk 0:00:35.2]} 38. Ke1 {[%clk 0:00:05]} 38...
Kf3 {[%clk 0:00:34.6]} 39. Kd1 {[%clk 0:00:05.3]} 39... Rg2 {[%clk 0:00:32.3]}
40. Bc5 {[%clk 0:00:05.4]} 40... Kxg4 {[%clk 0:00:29.7]} 41. Bb6 {[%clk
0:00:05.6]} 41... Rxb2 {[%clk 0:00:28.9]} 42. Bxa5 {[%clk 0:00:05.8]} 42... Ra2
{[%clk 0:00:29.2]} 43. d5 {[%clk 0:00:06.4]} 43... cxd5 {[%clk 0:00:28.8]} 44.
Bb6 {[%clk 0:00:06.8]} 44... Rxa4 {[%clk 0:00:28.2]} 45. Kd2 {[%clk 0:00:07.5]}
45... Kf3 {[%clk 0:00:27.7]} 46. Kd3 {[%clk 0:00:08.4]} 46... Rc4 {[%clk
0:00:27.6]} 47. Bd4 {[%clk 0:00:08.5]} 47... g5 {[%clk 0:00:27.2]} 0-1

[Event "Early-Titled-Tuesday-Blitz-September-12-2023"]
[Site "Chess.com"]
[Date "2023.09.12"]
[Round "11"]
[White "surrenderPLS"]
[Black "Goryachkina"]
[Result "1/2-1/2"]
[WhiteElo "2498"]
[BlackElo "2643"]
[TimeControl "180+1"]
[EndTime "10:06:11 PDT"]
[Termination "Game drawn by repetition"]

1. e4 {[%clk 0:03:00.9]} 1... c6 {[%clk 0:02:59.7]} 2. d4 {[%clk 0:03:00.5]}
2... d5 {[%clk 0:02:59.8]} 3. e5 {[%clk 0:03:00.6]} 3... Bf5 {[%clk 0:02:59.7]}
4. h4 {[%clk 0:03:01.3]} 4... Qc7 {[%clk 0:02:59.2]} 5. h5 {[%clk 0:03:00.9]}
5... h6 {[%clk 0:02:58.5]} 6. g4 {[%clk 0:03:00.2]} 6... Bd7 {[%clk 0:02:53.9]}
7. Nc3 {[%clk 0:02:51.6]} 7... e6 {[%clk 0:02:51.6]} 8. f4 {[%clk 0:02:51.5]}
8... c5 {[%clk 0:02:50.2]} 9. Nf3 {[%clk 0:02:51.5]} 9... cxd4 {[%clk
0:02:40.1]} 10. Nxd4 {[%clk 0:02:51]} 10... Nc6 {[%clk 0:02:40.2]} 11. Be3
{[%clk 0:02:51.2]} 11... a6 {[%clk 0:02:38.7]} 12. Qd2 {[%clk 0:02:50.1]} 12...
Bb4 {[%clk 0:02:34.2]} 13. a3 {[%clk 0:02:49.2]} 13... Ba5 {[%clk 0:02:32.3]}
14. Rg1 {[%clk 0:02:26.5]} 14... Nge7 {[%clk 0:02:30.8]} 15. b4 {[%clk
0:01:41.2]} 15... Bb6 {[%clk 0:02:24.5]} 16. Bh3 {[%clk 0:01:20.7]} 16... Nxd4
{[%clk 0:02:20.7]} 17. Bxd4 {[%clk 0:01:20.8]} 17... Nc6 {[%clk 0:02:16.1]} 18.
Bxb6 {[%clk 0:01:10.4]} 18... Qxb6 {[%clk 0:02:17]} 19. Rg3 {[%clk 0:01:10.2]}
19... O-O-O {[%clk 0:02:04]} 20. Na4 {[%clk 0:01:03.7]} 20... Qd4 {[%clk
0:01:53.8]} 21. c3 {[%clk 0:00:32.5]} 21... Qe4+ {[%clk 0:01:50.5]} 22. Qe3
{[%clk 0:00:27.5]} 22... Qxe3+ {[%clk 0:01:24.6]} 23. Rxe3 {[%clk 0:00:28.4]}
23... Kb8 {[%clk 0:01:20.9]} 24. Nb6 {[%clk 0:00:20.2]} 24... Kc7 {[%clk
0:01:06.7]} 25. Nxd7 {[%clk 0:00:18]} 25... Rxd7 {[%clk 0:01:07.6]} 26. O-O-O
{[%clk 0:00:18.4]} 26... Rhd8 {[%clk 0:01:04.7]} 27. Red3 {[%clk 0:00:18.7]}
27... b5 {[%clk 0:01:01.1]} 28. Kb2 {[%clk 0:00:18.4]} 28... d4 {[%clk
0:00:57.7]} 29. Bg2 {[%clk 0:00:15.4]} 29... dxc3+ {[%clk 0:00:52.1]} 30. Kxc3
{[%clk 0:00:16.3]} 30... Rxd3+ {[%clk 0:00:50.1]} 31. Rxd3 {[%clk 0:00:17.2]}
31... Rxd3+ {[%clk 0:00:50.4]} 32. Kxd3 {[%clk 0:00:18.1]} 32... Ne7 {[%clk
0:00:49.5]} 33. Be4 {[%clk 0:00:16.4]} 33... Kb6 {[%clk 0:00:24.6]} 34. Kd4
{[%clk 0:00:16.7]} 34... Ng8 {[%clk 0:00:16]} 35. g5 {[%clk 0:00:14.8]} 35...
Ne7 {[%clk 0:00:13.2]} 36. gxh6 {[%clk 0:00:08.8]} 36... gxh6 {[%clk 0:00:13]}
37. Bh7 {[%clk 0:00:08.6]} 37... Kc6 {[%clk 0:00:12.1]} 38. Be4+ {[%clk
0:00:08.6]} 38... Kb6 {[%clk 0:00:12.4]} 39. Bh7 {[%clk 0:00:08.8]} 39... Kc6
{[%clk 0:00:12.9]} 40. Be4+ {[%clk 0:00:09.1]} 40... Kb6 {[%clk 0:00:13.3]}
1/2-1/2

[Event "Early-Titled-Tuesday-Blitz-September-12-2023"]
[Site "Chess.com"]
[Date "2023.09.12"]
[Round "11"]
[White "Jackalhead_Anubis"]
[Black "chess123456s"]
[Result "0-1"]
[WhiteElo "2418"]
[BlackElo "2625"]
[TimeControl "180+1"]
[EndTime "10:06:12 PDT"]
[Termination "chess123456s won on time"]

1. e4 {[%clk 0:03:00.9]} 1... e5 {[%clk 0:02:58.6]} 2. Nf3 {[%clk 0:03:00.8]}
2... Nc6 {[%clk 0:02:57.6]} 3. Bb5 {[%clk 0:03:01.3]} 3... a6 {[%clk 0:02:58.3]}
4. Ba4 {[%clk 0:03:01.2]} 4... Nf6 {[%clk 0:02:59]} 5. O-O {[%clk 0:03:00.5]}
5... Be7 {[%clk 0:02:59.5]} 6. d3 {[%clk 0:03:00.1]} 6... b5 {[%clk 0:03:00.1]}
7. Bb3 {[%clk 0:03:00.2]} 7... O-O {[%clk 0:03:00.7]} 8. a4 {[%clk 0:02:59.3]}
8... b4 {[%clk 0:03:01.2]} 9. h3 {[%clk 0:02:54.9]} 9... Bc5 {[%clk 0:02:46]}
10. a5 {[%clk 0:02:51.6]} 10... d6 {[%clk 0:02:45.4]} 11. c3 {[%clk 0:02:50.6]}
11... Rb8 {[%clk 0:02:45.3]} 12. d4 {[%clk 0:02:43.3]} 12... Ba7 {[%clk
0:02:45]} 13. d5 {[%clk 0:02:41.7]} 13... Ne7 {[%clk 0:02:44.2]} 14. Re1 {[%clk
0:02:35.2]} 14... Ng6 {[%clk 0:02:41.8]} 15. c4 {[%clk 0:02:28.3]} 15... Nh5
{[%clk 0:02:29]} 16. Be3 {[%clk 0:02:20.3]} 16... Bxe3 {[%clk 0:02:27.2]} 17.
fxe3 {[%clk 0:02:20.8]} 17... f5 {[%clk 0:02:06.2]} 18. Nbd2 {[%clk 0:02:13.5]}
18... f4 {[%clk 0:02:01.2]} 19. exf4 {[%clk 0:01:05.6]} 19... Nhxf4 {[%clk
0:01:58.7]} 20. Re3 {[%clk 0:00:59.6]} 20... Qf6 {[%clk 0:01:49.9]} 21. Qe1
{[%clk 0:00:52.8]} 21... h6 {[%clk 0:01:09.3]} 22. Rc1 {[%clk 0:00:49.9]} 22...
Bd7 {[%clk 0:01:04.8]} 23. c5 {[%clk 0:00:48.7]} 23... Bb5 {[%clk 0:01:04.5]}
24. cxd6 {[%clk 0:00:36.1]} 24... cxd6 {[%clk 0:01:03.6]} 25. Bc4 {[%clk
0:00:34.3]} 25... Bxc4 {[%clk 0:00:53.9]} 26. Rxc4 {[%clk 0:00:32.4]} 26... Rfc8
{[%clk 0:00:52.5]} 27. Qc1 {[%clk 0:00:30.3]} 27... Rxc4 {[%clk 0:00:50.6]} 28.
Qxc4 {[%clk 0:00:31.2]} 28... Nh4 {[%clk 0:00:48.2]} 29. Nxh4 {[%clk 0:00:28.6]}
29... Qxh4 {[%clk 0:00:49.1]} 30. Qf1 {[%clk 0:00:13]} 30... Rf8 {[%clk
0:00:44.6]} 31. Rf3 {[%clk 0:00:12.1]} 31... Rc8 {[%clk 0:00:44.1]} 32. Qf2
{[%clk 0:00:09.9]} 32... Rc1+ {[%clk 0:00:42.9]} 33. Kh2 {[%clk 0:00:09.9]}
33... Qxf2 {[%clk 0:00:37.8]} 34. Rxf2 {[%clk 0:00:10.8]} 34... Rc2 {[%clk
0:00:38.7]} 35. b3 {[%clk 0:00:10.9]} 35... Nd3 {[%clk 0:00:38.6]} 36. Re2
{[%clk 0:00:11]} 36... Nc1 {[%clk 0:00:39.1]} 37. Re1 {[%clk 0:00:10.9]} 37...
Nd3 {[%clk 0:00:37.5]} 38. Re2 {[%clk 0:00:10.4]} 38... Nc5 {[%clk 0:00:22.4]}
0-1

[Event "Early-Titled-Tuesday-Blitz-September-12-2023"]
[Site "Chess.com"]
[Date "2023.09.12"]
[Round "11"]
[White "YEIKO2017"]
[Black "GaiozNigalidze"]
[Result "1-0"]
[WhiteElo "2546"]
[BlackElo "2695"]
[TimeControl "180+1"]
[EndTime "10:06:13 PDT"]
[Termination "YEIKO2017 won on time"]

1. e4 {[%clk 0:03:00.9]} 1... c5 {[%clk 0:02:59.3]} 2. Nf3 {[%clk 0:03:00]} 2...
d6 {[%clk 0:02:58]} 3. d4 {[%clk 0:02:59.3]} 3... cxd4 {[%clk 0:02:58.5]} 4.
Nxd4 {[%clk 0:02:59.4]} 4... Nf6 {[%clk 0:02:59]} 5. Nc3 {[%clk 0:02:59.8]} 5...
a6 {[%clk 0:02:58.5]} 6. Bg5 {[%clk 0:02:58.4]} 6... e6 {[%clk 0:02:58.6]} 7. f4
{[%clk 0:02:58.2]} 7... h6 {[%clk 0:02:57.9]} 8. Bh4 {[%clk 0:02:57.5]} 8... Qb6
{[%clk 0:02:58.2]} 9. Qd2 {[%clk 0:02:57]} 9... Qxb2 {[%clk 0:02:58]} 10. Nb3
{[%clk 0:02:57.1]} 10... Qa3 {[%clk 0:02:57.2]} 11. Bxf6 {[%clk 0:02:57.1]}
11... gxf6 {[%clk 0:02:57.4]} 12. Be2 {[%clk 0:02:58]} 12... h5 {[%clk
0:02:56.9]} 13. O-O {[%clk 0:02:57.5]} 13... Qb4 {[%clk 0:02:53.2]} 14. Kh1
{[%clk 0:02:51.5]} 14... Nd7 {[%clk 0:02:47]} 15. Rad1 {[%clk 0:02:47.5]} 15...
Qb6 {[%clk 0:02:45]} 16. Rf3 {[%clk 0:02:27.5]} 16... h4 {[%clk 0:02:38.4]} 17.
Rd3 {[%clk 0:02:25.8]} 17... Nc5 {[%clk 0:02:26.7]} 18. Nxc5 {[%clk 0:02:23.4]}
18... Qxc5 {[%clk 0:02:27.6]} 19. e5 {[%clk 0:02:23.7]} 19... f5 {[%clk
0:01:41.7]} 20. exd6 {[%clk 0:02:17.3]} 20... Bd7 {[%clk 0:01:42.1]} 21. Bf3
{[%clk 0:02:12.9]} 21... Rb8 {[%clk 0:01:42.4]} 22. Qe2 {[%clk 0:02:00.7]} 22...
Kd8 {[%clk 0:01:24.7]} 23. h3 {[%clk 0:01:31.3]} 23... Bg7 {[%clk 0:01:23.9]}
24. Nd5 {[%clk 0:01:24.1]} 24... Bb5 {[%clk 0:00:58.6]} 25. c4 {[%clk
0:00:55.1]} 25... Bxc4 {[%clk 0:00:53.7]} 26. Qc2 {[%clk 0:00:53.5]} 26... exd5
{[%clk 0:00:47.9]} 27. Rxd5 {[%clk 0:00:50.4]} 27... Qb4 {[%clk 0:00:37.5]} 28.
Rb1 {[%clk 0:00:31.9]} 28... Qa3 {[%clk 0:00:15.3]} 29. Qxc4 {[%clk 0:00:30.3]}
29... Rc8 {[%clk 0:00:15.9]} 30. Qd3 {[%clk 0:00:19.4]} 30... Rc1+ {[%clk
0:00:08.1]} 31. Rxc1 {[%clk 0:00:18.5]} 31... Qxc1+ {[%clk 0:00:09]} 32. Bd1
{[%clk 0:00:18.3]} 32... Qxf4 {[%clk 0:00:07.7]} 33. Rxf5 {[%clk 0:00:18.3]}
33... Qg3 {[%clk 0:00:06.3]} 34. Qxg3 {[%clk 0:00:13.5]} 34... hxg3 {[%clk
0:00:07.2]} 35. Rxf7 {[%clk 0:00:13.8]} 35... Re8 {[%clk 0:00:07.9]} 36. Re7
{[%clk 0:00:05.7]} 36... Rf8 {[%clk 0:00:03.8]} 37. Bf3 {[%clk 0:00:04]} 37...
Rf4 {[%clk 0:00:02.7]} 38. Rxg7 {[%clk 0:00:03.5]} 1-0